fUST/lending_fUST_20250817
["ID","MTS","AMOUNT","RATE_DAILY","PERIOD"]
[379913335,1755439843605,-151.0,0.00019329,2]
[379913336,1755439843614,-151.0,0.00019329,2]
[379913337,1755439843623,-153.022001,0.00019329,2]
[379913338,1755439843632,-164.471479,0.00019329,2]
[379913339,1755439843641,-164.471479,0.00019329,2]
[379913340,1755439843650,-151.0,0.00019329,2]
[379913341,1755439843659,-151.0,0.00019329,2]
[379913342,1755439843668,-151.0,0.00019329,2]
[379913343,1755439843679,-74234.70029473,0.00019329,2]
[379913344,1755439843687,-628.88887362,0.00019337,2]
[379913345,1755439843697,-175.23,0.00019342,2]
[379913346,1755439843706,-598.48,0.00019352,2]
[379913347,1755439843715,-260.024778,0.00019381,2]
[379913348,1755439843724,-151.0,0.00019381,2]
[379913349,1755439843733,-201.180788,0.00019381,2]
[379913350,1755439843743,-151.0,0.00019381,2]
[379913351,1755439843751,-327.837231,0.00019381,2]
[379913352,1755439843761,-327.837231,0.00019381,2]
[379913353,1755439843770,-522.821847,0.00019381,2]
[379913354,1755439843779,-522.821847,0.00019381,2]
[379913355,1755439843788,-826.863756,0.00019381,2]
[379913356,1755439843797,-826.863756,0.00019381,2]
[379913357,1755439843807,-848.25,0.00019392,2]
[379913358,1755439843815,-480.0,0.00019392,2]
[379913359,1755439843825,-480.0,0.00019392,2]
[379913360,1755439843834,-975.09,0.00019392,2]
[379913361,1755439843843,-1328.54,0.00019392,2]
[379913362,1755439843852,-1067.92,0.00019392,2]
[379913363,1755439843862,-2687.29,0.00019392,2]
[379913364,1755439843871,-480.0,0.00019392,2]
[379913377,1755439843994,-543.11,0.00019392,2]
[379913379,1755439844004,-480.0,0.0001946,2]
[379913381,1755439844013,-866.62,0.0001946,2]
[379913383,1755439844023,-480.0,0.0001946,2]
[379913385,1755439844032,-480.0,0.0001946,2]
[379913387,1755439844041,-4038.63,0.0001946,2]
[379913389,1755439844051,-712.88,0.00019463,2]
[379913391,1755439844060,-564.69,0.00019463,2]
[379913393,1755439844070,-525.02,0.00019463,2]
[379913395,1755439844079,-151.0,0.00019464,2]
[379913397,1755439844088,-480.0,0.00019464,2]
[379913399,1755439844098,-480.0,0.00019464,2]
[379913401,1755439844108,-826.863756,0.00019464,2]
[379913403,1755439844118,-826.863756,0.00019464,2]
[379913405,1755439844128,-1490.66,0.00019464,2]
[379913407,1755439844137,-1939.25,0.00019464,2]
[379913409,1755439844147,-522.821847,0.00019491,2]
[379913411,1755439844156,-522.821847,0.00019491,2]
[379913413,1755439844166,-327.837231,0.00019528,2]
[379913415,1755439844177,-327.837231,0.00019528,2]
[379913417,1755439844187,-600.0,0.00019529,2]
[379913419,1755439844196,-725.65,0.00019547,2]
[379913421,1755439844206,-480.0,0.00019565,2]
[379913423,1755439844215,-480.0,0.00019565,2]
[379913425,1755439844225,-480.0,0.00019566,2]
[379913426,1755439844235,-564.76,0.00019566,2]
[379913429,1755439844245,-480.0,0.00019566,2]
[379913430,1755439844255,-480.0,0.00019566,2]
[379913432,1755439844265,-480.0,0.00019566,2]
[379913434,1755439844274,-480.0,0.00019566,2]
[379913436,1755439844284,-480.0,0.00019566,2]
[379913438,1755439844293,-2026.1,0.00019566,2]
[379913440,1755439844303,-614.56,0.00019566,2]
[379913442,1755439844312,-480.0,0.00019566,2]
[379913444,1755439844322,-648.05,0.00019566,2]
[379913446,1755439844331,-480.0,0.00019566,2]
[379913448,1755439844340,-799.94,0.00019566,2]
[379913450,1755439844350,-526.49,0.00019566,2]
[379913452,1755439844360,-612.5957836,0.00019567,2]
[379913454,1755439844369,-729.66,0.00019567,2]
[379913456,1755439844379,-480.0,0.00019567,2]
[379913458,1755439844388,-480.0,0.00019567,2]
[379913460,1755439844398,-510.29,0.00019567,2]
[379913462,1755439844407,-542.44,0.00019567,2]
[379913464,1755439844416,-872.07,0.00019567,2]
[379913466,1755439844427,-480.0,0.00019567,2]
[379913468,1755439844436,-480.0,0.00019567,2]
[379913470,1755439844446,-867.03,0.00019567,2]
[379913472,1755439844460,-480.0,0.00019567,2]
[379913474,1755439844469,-516.77,0.00019567,2]
[379913476,1755439844479,-480.0,0.00019567,2]
[379913478,1755439844489,-480.0,0.00019567,2]
[379913480,1755439844499,-633.1,0.00019567,2]
[379913482,1755439844508,-480.0,0.00019567,2]
[379913483,1755439844518,-480.0,0.00019567,2]
[379913485,1755439844527,-480.0,0.00019567,2]
[379913487,1755439844538,-480.0,0.00019567,2]
[379913489,1755439844548,-480.0,0.00019567,2]
[379913491,1755439844557,-652.47,0.00019567,2]
[379913493,1755439844566,-480.0,0.00019567,2]
[379913495,1755439844575,-480.0,0.00019567,2]
[379913497,1755439844585,-1566.1,0.00019567,2]
[379913499,1755439844594,-6080.88,0.00019567,2]
[379913501,1755439844604,-754.07,0.00019567,2]
[379913503,1755439844613,-480.0,0.00019567,2]
[379913505,1755439844622,-713.96,0.00019568,2]
[379913507,1755439844632,-323.03969031,0.00019568,2]
[379913509,1755439844641,-480.0,0.00019568,2]
[379913511,1755439844650,-151.0,0.00019568,2]
[379913513,1755439844659,-151.0,0.00019568,2]
[379913515,1755439844668,-151.0,0.00019568,2]
[379913517,1755439844678,-235.774776,0.00019568,2]
[379913519,1755439844687,-151.0,0.00019568,2]
[379913521,1755439844696,-480.0,0.00019568,2]
[379913522,1755439844706,-480.0,0.0001957,2]
[379913524,1755439844716,-480.0,0.0001957,2]
[379913526,1755439844726,-480.0,0.0001957,2]
[379913528,1755439844736,-480.0,0.0001957,2]
[379913530,1755439844745,-151.0,0.0001957,2]
[379913532,1755439844754,-151.0,0.0001957,2]
[379913534,1755439844763,-151.0,0.0001957,2]
[379913536,1755439844773,-5719.11,0.0001957,2]
[379913538,1755439844782,-151.0,0.0001957,2]
[379913540,1755439844792,-480.0,0.0001957,2]
[379913542,1755439844802,-731.95,0.0001957,2]
[379913544,1755439844811,-598.48,0.00019626,2]
[379913547,1755439844820,-628.88887362,0.00019626,2]
[379913549,1755439844830,-297.04593712,0.00019664,2]
[379913551,1755439844841,-848.25,0.00019666,2]
[379913553,1755439844850,-480.0,0.00019666,2]
[379913555,1755439844860,-480.0,0.00019666,2]
[379913557,1755439844870,-975.09,0.00019666,2]
[379913559,1755439844879,-1328.54,0.00019666,2]
[379913561,1755439844888,-1067.92,0.00019666,2]
[379913563,1755439844899,-2687.29,0.00019666,2]
[379913565,1755439844908,-480.0,0.00019666,2]
[379913567,1755439844918,-543.11,0.00019666,2]
[379913569,1755439844928,-151.0,0.00019668,2]
[379913571,1755439844938,-151.0,0.00019668,2]
[379913573,1755439844947,-151.0,0.00019668,2]
[379913575,1755439844957,-151.0,0.00019668,2]
[379913577,1755439844966,-151.0,0.00019668,2]
[379913579,1755439844976,-1500.0,0.00019668,2]
[379913581,1755439844985,-1500.0,0.00019668,2]
[379913583,1755439844995,-1500.0,0.00019668,2]
[379913585,1755439845004,-1500.0,0.00019668,2]
[379913587,1755439845014,-1500.0,0.00019668,2]
[379913589,1755439845023,-1500.0,0.00019668,2]
[379913591,1755439845033,-1569.61629274,0.00019668,2]
[379913593,1755439845042,-1500.0,0.00019668,2]
[379913595,1755439845052,-806.20086245,0.00019668,2]
[379913597,1755439845061,-3207.84890646,0.00019671,2]
[379913599,1755439845070,-232.1512529,0.00019701,2]
[379913601,1755439845080,-160.0,0.00019701,2]
[379913603,1755439845089,-375.77065697,0.00019707,2]
[379913605,1755439845099,-417.15472785,0.00019707,2]
[379913607,1755439845108,-160.0,0.00019707,2]
[379913608,1755439845118,-160.0,0.00019707,2]
[379913610,1755439845128,-160.0,0.00019707,2]
[379913612,1755439845137,-216.83204348,0.00019707,2]
[379913614,1755439845146,-160.0,0.00019707,2]
[379913616,1755439845156,-843.71309931,0.00019707,2]
[379913618,1755439845166,-160.0,0.00019707,2]
[379913620,1755439845175,-528.48506731,0.00019707,2]
[379913622,1755439845185,-160.0,0.00019707,2]
[379913624,1755439845195,-215.71995163,0.00019707,2]
[379913626,1755439845204,-160.0,0.00019707,2]
[379913628,1755439845214,-160.0,0.00019707,2]
[379913630,1755439845224,-160.0,0.00019707,2]
[379913632,1755439845236,-12682.46447135,0.00019707,2]
[379913634,1755439845246,-151.0,0.00019726,2]
[379913636,1755439845255,-151.0,0.00019726,2]
[379913638,1755439845265,-151.0,0.00019726,2]
[379913640,1755439845275,-1679.0,0.00019726,2]
[379913642,1755439845285,-151.18464823,0.00019726,2]
[379913644,1755439845294,-151.0,0.00019726,2]
[379913646,1755439845303,-500.0,0.00019726,2]
[379913648,1755439845313,-151.0,0.00019726,2]
[379913650,1755439845322,-151.0,0.00019726,2]
[379913652,1755439845331,-151.0,0.00019726,2]
[379913654,1755439845341,-151.0,0.00019726,2]
[379913656,1755439845350,-239.481308,0.00019726,2]
[379913658,1755439845360,-164.471479,0.00019726,2]
[379913660,1755439845369,-164.471479,0.00019726,2]
[379913662,1755439845378,-151.0,0.00019726,2]
[379913664,1755439845388,-151.0,0.00019726,2]
[379913666,1755439845398,-165.20798353,0.00019726,2]
[379913668,1755439845407,-500.0,0.00019726,2]
[379913670,1755439845417,-151.0,0.00019726,2]
[379913672,1755439845427,-230.442391,0.00019726,2]
[379913674,1755439845436,-151.0,0.00019726,2]
[379913675,1755439845445,-151.0,0.00019726,2]
[379913677,1755439845456,-276.25127351,0.00019726,2]
[379913679,1755439845465,-151.0,0.00019726,2]
[379913681,1755439845475,-151.0,0.00019726,2]
[379913683,1755439845484,-151.0,0.00019726,2]
[379913685,1755439845495,-500.0,0.00019726,2]
[379913687,1755439845504,-500.0,0.00019726,2]
[379913689,1755439845514,-151.0,0.00019734,2]
[379913691,1755439845523,-151.094385,0.00019734,2]
[379913693,1755439845534,-480.0,0.00019734,2]
[379913695,1755439845543,-151.0,0.00019734,2]
[379913697,1755439845552,-866.62,0.00019734,2]
[379913699,1755439845561,-480.0,0.00019734,2]
[379913701,1755439845570,-480.0,0.00019734,2]
[379913703,1755439845580,-4038.63,0.00019734,2]
[379913705,1755439845589,-151.0,0.00019734,2]
[379913707,1755439845598,-151.0,0.00019734,2]
[379913709,1755439845608,-151.0,0.00019734,2]
[379913711,1755439845617,-151.0,0.00019734,2]
[379913712,1755439845627,-712.88,0.00019737,2]
[379913714,1755439845637,-564.69,0.00019737,2]
[379913716,1755439845646,-525.02,0.00019737,2]
[379913718,1755439845656,-259.475775,0.00019738,2]
[379913720,1755439845665,-480.0,0.00019738,2]
[379913722,1755439845674,-151.0,0.00019738,2]
[379913724,1755439845684,-480.0,0.00019738,2]
[379913726,1755439845693,-151.0,0.00019738,2]
[379913728,1755439845702,-151.0,0.00019738,2]
[379913730,1755439845711,-151.0,0.00019738,2]
[379913732,1755439845720,-151.0,0.00019738,2]
[379913734,1755439845730,-162.641342,0.00019738,2]
[379913736,1755439845739,-151.0,0.00019738,2]
[379913738,1755439845748,-283.97858,0.00019738,2]
[379913740,1755439845757,-151.0,0.00019738,2]
[379913742,1755439845767,-151.0,0.00019738,2]
[379913744,1755439845776,-151.0,0.00019738,2]
[379913746,1755439845785,-151.0,0.00019738,2]
[379913748,1755439845794,-1490.66,0.00019738,2]
[379913750,1755439845803,-151.0,0.00019738,2]
[379913752,1755439845813,-1939.25,0.00019738,2]
[379913754,1755439845822,-278.560994,0.00019738,2]
[379913757,1755439845831,-278.560994,0.00019738,2]
[379913760,1755439845841,-826.863756,0.00019739,2]
[379913763,1755439845850,-826.863756,0.00019739,2]
[379913766,1755439845860,-500.0,0.00019784,2]
[379913769,1755439845869,-151.0,0.00019784,2]
[379913771,1755439845878,-151.0,0.00019784,2]
[379913774,1755439845887,-151.0,0.00019784,2]
[379913777,1755439845896,-154.69475,0.00019784,2]
[379913779,1755439845906,-522.821847,0.00019802,2]
[379913782,1755439845915,-522.821847,0.00019802,2]
[379913785,1755439845924,-480.0,0.00019839,2]
[379913787,1755439845934,-408.39677631,0.00019839,2]
[379913789,1755439845944,-480.0,0.0001984,2]
[379913791,1755439845953,-564.76,0.0001984,2]
[379913793,1755439845962,-480.0,0.0001984,2]
[379913795,1755439845972,-480.0,0.0001984,2]
[379913797,1755439845981,-480.0,0.0001984,2]
[379913799,1755439845990,-480.0,0.0001984,2]
[379913800,1755439845999,-480.0,0.0001984,2]
[379913803,1755439846010,-2026.1,0.0001984,2]
[379913805,1755439846020,-614.56,0.0001984,2]
[379913806,1755439846029,-480.0,0.0001984,2]
[379913808,1755439846038,-648.05,0.0001984,2]
[379913810,1755439846049,-480.0,0.0001984,2]
[379913812,1755439846058,-799.94,0.0001984,2]
[379913814,1755439846068,-526.49,0.0001984,2]
[379913816,1755439846077,-729.66,0.00019841,2]
[379913818,1755439846086,-256.11629067,0.00019841,2]
[379913820,1755439846095,-480.0,0.00019841,2]
[379913822,1755439846104,-510.29,0.00019841,2]
[379913824,1755439846114,-542.44,0.00019841,2]
[379913826,1755439846123,-872.07,0.00019841,2]
[379913828,1755439846133,-480.0,0.00019841,2]
[379913830,1755439846142,-480.0,0.00019841,2]
[379913832,1755439846152,-867.03,0.00019841,2]
[379913834,1755439846161,-480.0,0.00019841,2]
[379913836,1755439846171,-516.77,0.00019841,2]
[379913838,1755439846182,-480.0,0.00019841,2]
[379913840,1755439846191,-480.0,0.00019841,2]
[379913842,1755439846201,-633.1,0.00019841,2]
[379913844,1755439846210,-480.0,0.00019841,2]
[379913846,1755439846219,-480.0,0.00019841,2]
[379913848,1755439846229,-480.0,0.00019841,2]
[379913850,1755439846238,-480.0,0.00019841,2]
[379913851,1755439846248,-480.0,0.00019841,2]
[379913852,1755439846257,-652.47,0.00019841,2]
[379913853,1755439846266,-480.0,0.00019841,2]
[379913854,1755439846276,-480.0,0.00019841,2]
[379913855,1755439846285,-1566.1,0.00019841,2]
[379913856,1755439846295,-6080.88,0.00019841,2]
[379913857,1755439846304,-754.07,0.00019841,2]
[379913858,1755439846313,-480.0,0.00019841,2]
[379913859,1755439846323,-713.96,0.00019842,2]
[379913860,1755439846333,-480.0,0.00019842,2]
[379913861,1755439846342,-480.0,0.00019842,2]
[379913863,1755439846351,-480.0,0.00019844,2]
[379913865,1755439846361,-480.0,0.00019844,2]
[379913867,1755439846370,-151.0,0.00019844,2]
[379913869,1755439846380,-480.0,0.00019844,2]
[379913871,1755439846390,-480.0,0.00019844,2]
[379913884,1755439846509,-5719.11,0.00019844,2]
[379913886,1755439846519,-480.0,0.00019844,2]
[379913888,1755439846528,-731.95,0.00019844,2]
[379913890,1755439846538,-625.492,0.00019846,2]
[379913892,1755439846547,-863.9729156,0.0001985,2]
[379913894,1755439846557,-161.887942,0.00019863,2]
[379913896,1755439846566,-500.0,0.00019868,2]
[379913898,1755439846575,-327.837231,0.00019874,2]
[379913900,1755439846584,-327.837231,0.00019874,2]
[379913902,1755439846593,-151.0,0.000199,2]
[379913904,1755439846602,-151.0,0.000199,2]
[379913906,1755439846612,-156.910804,0.000199,2]
[379913908,1755439846621,-151.0,0.000199,2]
[379913910,1755439846631,-151.0,0.000199,2]
[379913912,1755439846640,-151.0,0.000199,2]
[379913914,1755439846649,-151.0,0.000199,2]
[379913916,1755439846658,-205.309678,0.000199,2]
[379913918,1755439846667,-151.0,0.000199,2]
[379913920,1755439846676,-598.48,0.000199,2]
[379913922,1755439846686,-151.0,0.000199,2]
[379913924,1755439846695,-6674.86634364,0.000199,2]
[379913926,1755439846704,-2298.04,0.00019901,3]
[379913928,1755439846713,-1149.02,0.00019901,3]
[379913930,1755439846722,-574.5,0.00019901,3]
[379913932,1755439846730,-12682.46447135,0.0001991,3]
[379913934,1755439846740,-375.77065697,0.0001991,3]
[379913936,1755439846749,-215.71995163,0.0001991,3]
[379913938,1755439846759,-151.0,0.0001991,2]
[379913940,1755439846768,-160.0,0.00019918,2]
[379913942,1755439846777,-848.25,0.0001994,2]
[379913944,1755439846787,-480.0,0.0001994,2]
[379913946,1755439846797,-480.0,0.0001994,2]
[379913948,1755439846806,-975.09,0.0001994,2]
[379913950,1755439846816,-1328.54,0.0001994,2]
[379913952,1755439846826,-1067.92,0.0001994,2]
[379913954,1755439846835,-2687.29,0.0001994,2]
[379913956,1755439846844,-480.0,0.0001994,2]
[379913958,1755439846855,-543.11,0.0001994,2]
[379913960,1755439846865,-420.5,0.00019942,2]
[379913962,1755439846874,-280.0,0.00019956,2]
[379913964,1755439846884,-239.481308,0.00019956,2]
[379913966,1755439846893,-164.471479,0.00019956,2]
[379913968,1755439846902,-164.471479,0.00019956,2]
[379913970,1755439846911,-151.0,0.00019956,2]
[379913972,1755439846920,-7920.16953176,0.00019957,2]
[379913974,1755439846930,-151.0,0.0002,2]
[379913976,1755439846940,-1679.0,0.0002,2]
[379913978,1755439846951,-151.0,0.0002,2]
[379913980,1755439846960,-500.0,0.0002,2]
[379913982,1755439846969,-151.0,0.0002,2]
[379913984,1755439846980,-151.0,0.0002,2]
[379913986,1755439846990,-151.10329791,0.0002,2]
[379913988,1755439847000,-500.0,0.0002,2]
[379913990,1755439847009,-151.0,0.0002,2]
[379913992,1755439847018,-151.0,0.0002,2]
[379913994,1755439847028,-151.0,0.0002,2]
[379913996,1755439847037,-151.0,0.0002,2]
[379913998,1755439847047,-500.0,0.0002,2]
[379914000,1755439847057,-33917.7118577,0.0002,4]
[379914002,1755439847067,-151.0,0.0002,2]
[379914004,1755439847076,-151.0,0.0002,2]
[379914006,1755439847086,-684.232308,0.0002,2]
[379914008,1755439847096,-684.232308,0.0002,2]
[379914010,1755439847106,-205.198832,0.0002,2]
[379914012,1755439847116,-151.0,0.0002,2]
[379914014,1755439847127,-168.591531,0.0002,2]
[379914016,1755439847138,-158.980328,0.0002,2]
[379914018,1755439847147,-151.0,0.0002,2]
[379914020,1755439847157,-151.0,0.0002,2]
[379914022,1755439847167,-327.837231,0.0002,2]
[379914024,1755439847177,-327.837231,0.0002,2]
[379914026,1755439847189,-151.0,0.0002,2]
[379914028,1755439847199,-151.0,0.0002,2]
[379914030,1755439847208,-151.0,0.0002,2]
[379914032,1755439847218,-151.0,0.0002,2]
[379914034,1755439847230,-151.0,0.0002,2]
[379914036,1755439847239,-151.0,0.0002,2]
[379914038,1755439847249,-151.0,0.0002,2]
[379914040,1755439847259,-151.0,0.0002,2]
[379914042,1755439847269,-151.0,0.0002,2]
[379914044,1755439847278,-522.821847,0.0002,2]
[379914046,1755439847288,-522.821847,0.0002,2]
[379914048,1755439847297,-151.0,0.0002,2]
[379914050,1755439847306,-151.0,0.0002,2]
[379914052,1755439847315,-151.0,0.0002,2]
[379914054,1755439847325,-151.0,0.0002,2]
[379914056,1755439847334,-151.0,0.0002,2]
[379914058,1755439847344,-151.0,0.0002,2]
[379914060,1755439847353,-152.924513,0.0002,2]
[379914062,1755439847363,-151.0,0.0002,2]
[379914064,1755439847372,-151.0,0.0002,2]
[379914066,1755439847381,-151.0,0.0002,2]
[379914068,1755439847390,-160.0,0.0002,3]
[379914070,1755439847399,-826.863756,0.0002,2]
[379914072,1755439847408,-826.863756,0.0002,2]
[379914074,1755439847417,-160.0,0.0002,3]
[379914076,1755439847427,-151.0,0.0002,2]
[379914078,1755439847437,-289.139627,0.0002,2]
[379914080,1755439847447,-151.0,0.0002,2]
[379914082,1755439847461,-151.0,0.0002,2]
[379914084,1755439847470,-278.560994,0.0002,2]
[379914086,1755439847479,-151.0,0.0002,2]
[379914088,1755439847489,-278.560994,0.0002,2]
[379914090,1755439847498,-4000.0,0.0002,4]
[379914092,1755439847507,-168.0,0.00020007,2]
[379914094,1755439847517,-151.0,0.00020008,2]
[379914096,1755439847527,-151.0,0.00020008,2]
[379914098,1755439847536,-151.0,0.00020008,2]
[379914100,1755439847545,-480.0,0.00020008,2]
[379914102,1755439847555,-151.0,0.00020008,2]
[379914103,1755439847564,-866.62,0.00020008,2]
[379914105,1755439847573,-540.84,0.00020008,2]
[379914107,1755439847582,-480.0,0.00020008,2]
[379914109,1755439847591,-4038.63,0.00020008,2]
[379914111,1755439847601,-151.0,0.0002001,2]
[379914113,1755439847610,-712.88,0.00020011,2]
[379914115,1755439847619,-564.69,0.00020011,2]
[379914117,1755439847628,-525.02,0.00020011,2]
[379914119,1755439847637,-218.189699,0.00020012,2]
[379914121,1755439847646,-190.295796,0.00020012,2]
[379914123,1755439847656,-480.0,0.00020012,2]
[379914125,1755439847665,-480.0,0.00020012,2]
[379914127,1755439847675,-1490.66,0.00020012,2]
[379914129,1755439847685,-1939.25,0.00020012,2]
[379914131,1755439847725,-151.0,0.00020013,2]
[379914134,1755439847766,-151.0,0.00020013,2]
[379914136,1755439847782,-1680.0,0.00020054,2]
[379914138,1755439847792,-151.0,0.00020095,2]
[379914140,1755439847801,-151.0,0.00020095,2]
[379914142,1755439847810,-151.0,0.00020095,2]
[379914144,1755439847819,-725.65,0.00020095,2]
[379914146,1755439847828,-151.0,0.000201,3]
[379914148,1755439847838,-151.0,0.000201,4]
[379914150,1755439847852,-420.5,0.00020104,2]
[379914152,1755439847862,-480.0,0.00020113,2]
[379914154,1755439847872,-480.0,0.00020114,2]
[379914156,1755439847881,-564.76,0.00020114,2]
[379914158,1755439847891,-480.0,0.00020114,2]
[379914161,1755439847900,-480.0,0.00020114,2]
[379914162,1755439847910,-151.0,0.00020114,2]
[379914165,1755439847919,-480.0,0.00020114,2]
[379914167,1755439847928,-480.0,0.00020114,2]
[379914169,1755439847939,-480.0,0.00020114,2]
[379914171,1755439847948,-2026.1,0.00020114,2]
[379914172,1755439847958,-151.0,0.00020114,2]
[379914174,1755439847967,-614.56,0.00020114,2]
[379914177,1755439847977,-480.0,0.00020114,2]
[379914178,1755439847986,-648.05,0.00020114,2]
[379914180,1755439847995,-480.0,0.00020114,2]
[379914182,1755439848005,-799.94,0.00020114,2]
[379914184,1755439848014,-526.49,0.00020114,2]
[379914186,1755439848024,-729.66,0.00020115,2]
[379914188,1755439848033,-480.0,0.00020115,2]
[379914191,1755439848043,-510.29,0.00020115,2]
[379914193,1755439848053,-542.44,0.00020115,2]
[379914195,1755439848062,-872.07,0.00020115,2]
[379914197,1755439848071,-480.0,0.00020115,2]
[379914199,1755439848080,-480.0,0.00020115,2]
[379914200,1755439848090,-867.03,0.00020115,2]
[379914202,1755439848100,-480.0,0.00020115,2]
[379914204,1755439848110,-516.77,0.00020115,2]
[379914206,1755439848120,-480.0,0.00020115,2]
[379914208,1755439848129,-480.0,0.00020115,2]
[379914210,1755439848140,-633.1,0.00020115,2]
[379914213,1755439848150,-480.0,0.00020115,2]
[379914215,1755439848159,-413.52097291,0.00020115,2]
[379914217,1755439848169,-480.0,0.00020115,2]
[379914219,1755439848179,-480.0,0.00020115,2]
[379914221,1755439848190,-480.0,0.00020115,2]
[379914223,1755439848200,-652.47,0.00020115,2]
[379914224,1755439848210,-480.0,0.00020115,2]
[379914226,1755439848219,-523.29562818,0.00020115,2]
[379914228,1755439848229,-1566.1,0.00020115,2]
[379914230,1755439848238,-6080.88,0.00020115,2]
[379914232,1755439848247,-754.07,0.00020115,2]
[379914234,1755439848257,-480.0,0.00020115,2]
[379914236,1755439848267,-223.260542,0.00020115,2]
[379914238,1755439848276,-713.96,0.00020116,2]
[379914240,1755439848285,-480.0,0.00020116,2]
[379914242,1755439848295,-480.0,0.00020116,2]
[379914244,1755439848304,-480.0,0.00020118,2]
[379914246,1755439848313,-480.0,0.00020118,2]
[379914248,1755439848323,-522.821847,0.00020118,2]
[379914250,1755439848333,-522.821847,0.00020118,2]
[379914251,1755439848342,-480.0,0.00020118,2]
[379914253,1755439848352,-480.0,0.00020118,2]
[379914255,1755439848361,-239.481308,0.00020118,2]
[379914257,1755439848371,-5719.11,0.00020118,2]
[379914259,1755439848381,-480.0,0.00020118,2]
[379914261,1755439848391,-164.471479,0.00020118,2]
[379914263,1755439848401,-731.95,0.00020118,2]
[379914265,1755439848410,-164.471479,0.00020118,2]
[379914267,1755439848420,-151.0,0.00020118,2]
[379914269,1755439848429,-160.7855539,0.0002012,2]
[379914271,1755439848440,-168.0,0.00020135,2]
[379914273,1755439848451,-5002.95223816,0.0002014,2]
[379914275,1755439848462,-151.0,0.0002014,2]
[379914277,1755439848471,-826.863756,0.0002014,2]
[379914279,1755439848481,-826.863756,0.0002014,2]
[379914281,1755439848489,-153.0,0.0002014,2]
[379914283,1755439848500,-153.0,0.0002014,2]
[379914285,1755439848510,-307.4438434,0.0002014,2]
[379914287,1755439848519,-153.0,0.0002014,2]
[379914289,1755439848530,-153.0,0.0002014,2]
[379914291,1755439848539,-153.0,0.0002014,2]
[379914293,1755439848549,-160.0,0.00020169,3]
[379914295,1755439848558,-684.232308,0.00020173,2]
[379914297,1755439848567,-684.232308,0.00020173,2]
[379914299,1755439848577,-598.48,0.00020174,2]
[379914301,1755439848586,-327.837231,0.00020187,2]
[379914303,1755439848596,-327.837231,0.00020187,2]
[379914305,1755439848606,-597.841205,0.00020187,2]
[379914307,1755439848616,-203.97,0.000202,2]
[379914309,1755439848625,-848.25,0.00020213,2]
[379914311,1755439848635,-329.19591637,0.00020213,2]
[379914313,1755439848645,-480.0,0.00020213,2]
[379914315,1755439848654,-975.09,0.00020213,2]
[379914316,1755439848664,-1328.54,0.00020213,2]